[Event "December 19 Early 2023"]
[Site "https://www.chess.com"]
[Date "2023.12.19"]
[Round "10"]
[White "Boor, Carl"]
[Black "Von Buelow, Georg"]
[Result "0-1"]
[Board "93"]
[TimeControl "180+1"]
[WhiteFideId "2017008"]
[BlackFideId "4620658"]
[WhiteElo "2330"]
[BlackElo "2256"]
[WhiteTeam "USA"]
[BlackTeam "GER"]
[WhiteClock "0:01:00"]
[BlackClock "0:00:41"]

1. d4 {[%clk 0:03:00]}  Nf6 {[%clk 0:02:53]} 2. Bg5 {[%clk 0:03:00]}  d5 {[%clk 0:02:52]} 3. e3 {[%clk 0:02:59]}  c5 {[%clk 0:02:52]} 4. c3 {[%clk 0:02:59]}  cxd4 {[%clk 0:02:52]} 5. cxd4 {[%clk 0:02:54]}  Nc6 {[%clk 0:02:52]} 6. Nc3 {[%clk 0:02:54]}  a6 {[%clk 0:02:44]} 7. Bd3 {[%clk 0:02:53]}  Bg4 {[%clk 0:02:33]} 8. Nge2 {[%clk 0:02:49]}  Bxe2 {[%clk 0:02:30]} 9. Qxe2 {[%clk 0:02:47]}  e6 {[%clk 0:02:31]} 10. O-O {[%clk 0:02:46]}  Be7 {[%clk 0:02:31]} 11. Rfc1 {[%clk 0:02:44]}  O-O {[%clk 0:02:31]} 12. Qf3 {[%clk 0:02:44]}  h6 {[%clk 0:02:27]} 13. Bh4 {[%clk 0:02:40]}  Rc8 {[%clk 0:02:22]} 14. Qh3 {[%clk 0:02:33]}  b5 {[%clk 0:02:13]} 15. g4 {[%clk 0:02:11]}  Nh7 {[%clk 0:01:47]} 16. Bg3 {[%clk 0:02:03]}  Na5 {[%clk 0:01:44]} 17. Ne2 {[%clk 0:01:59]}  Nc4 {[%clk 0:01:24]} 18. b3 {[%clk 0:01:57]}  Nd6 {[%clk 0:01:23]} 19. Qg2 {[%clk 0:01:54]}  Qd7 {[%clk 0:01:18]} 20. h4 {[%clk 0:01:36]}  Rxc1+ {[%clk 0:01:16]} 21. Rxc1 {[%clk 0:01:35]}  Rc8 {[%clk 0:01:16]} 22. Rxc8+ {[%clk 0:01:34]}  Qxc8 {[%clk 0:01:12]} 23. g5 {[%clk 0:01:28]}  hxg5 {[%clk 0:01:13]} 24. hxg5 {[%clk 0:01:28]}  Nf8 {[%clk 0:01:09]} 25. Bxd6 {[%clk 0:01:16]}  Bxd6 {[%clk 0:01:07]} 26. g6 {[%clk 0:01:16]}  fxg6 {[%clk 0:00:52]} 27. Bxg6 {[%clk 0:01:15]}  Qd8 {[%clk 0:00:49]} 28. f4 {[%clk 0:01:10]}  Qh4 {[%clk 0:00:43]} 29. Qg3 {[%clk 0:01:03]}  Qxg3+ {[%clk 0:00:42]} 30. Nxg3 {[%clk 0:01:00]}  Nxg6 {[%clk 0:00:41]} 0-1

[Event "December 19 Early 2023"]
[Site "https://www.chess.com"]
[Date "2023.12.19"]
[Round "10"]
[White "Kraus, Tomas"]
[Black "Weetik, Vjacheslav"]
[Result "0-1"]
[Board "95"]
[TimeControl "180+1"]
[WhiteFideId "331708"]
[BlackFideId "4153472"]
[WhiteElo "2371"]
[BlackElo "2469"]
[WhiteTeam "CZE"]
[BlackTeam "RUS"]
[WhiteClock "0:00:43"]
[BlackClock "0:01:14"]

1. e4 {[%clk 0:03:00]}  e5 {[%clk 0:02:56]} 2. Nf3 {[%clk 0:03:00]}  Nc6 {[%clk 0:02:56]} 3. Bb5 {[%clk 0:02:59]}  a6 {[%clk 0:02:56]} 4. Ba4 {[%clk 0:02:59]}  Nf6 {[%clk 0:02:57]} 5. O-O {[%clk 0:02:59]}  b5 {[%clk 0:02:57]} 6. Bb3 {[%clk 0:02:59]}  Bc5 {[%clk 0:02:57]} 7. c3 {[%clk 0:02:57]}  d6 {[%clk 0:02:57]} 8. d4 {[%clk 0:02:57]}  Bb6 {[%clk 0:02:57]} 9. Bg5 {[%clk 0:02:55]}  h6 {[%clk 0:02:55]} 10. Bh4 {[%clk 0:02:55]}  g5 {[%clk 0:02:55]} 11. Bg3 {[%clk 0:02:55]}  Qe7 {[%clk 0:02:37]} 12. Bd5 {[%clk 0:02:37]}  Bb7 {[%clk 0:02:17]} 13. dxe5 {[%clk 0:02:20]}  Nxd5 {[%clk 0:02:05]} 14. exd6 {[%clk 0:02:09]}  cxd6 {[%clk 0:01:59]} 15. exd5 {[%clk 0:02:07]}  Ne5 {[%clk 0:01:59]} 16. Re1 {[%clk 0:02:03]}  f6 {[%clk 0:01:47]} 17. Nxe5 {[%clk 0:01:56]}  fxe5 {[%clk 0:01:45]} 18. a4 {[%clk 0:01:52]}  O-O {[%clk 0:01:36]} 19. Na3 {[%clk 0:01:44]}  Qf7 {[%clk 0:01:28]} 20. axb5 {[%clk 0:01:23]}  Bxd5 {[%clk 0:01:20]} 21. bxa6 {[%clk 0:00:43]}  Bxf2+ {[%clk 0:01:17]} 22. Bxf2 {[%clk 0:00:44]}  Qxf2+ {[%clk 0:01:17]} 23. Kh1 {[%clk 0:00:43]}  Bxg2# {[%clk 0:01:14]} 0-1

[Event "December 19 Early 2023"]
[Site "https://www.chess.com"]
[Date "2023.12.19"]
[Round "10"]
[White "Topalov, Aleksandar"]
[Black "Melian, Juan Sebastian"]
[Result "0-1"]
[Board "96"]
[TimeControl "180+1"]
[WhiteFideId "925659"]
[BlackFideId "3706575"]
[WhiteElo "2151"]
[BlackElo "2098"]
[WhiteTeam "SRB"]
[BlackTeam "PAR"]
[WhiteClock "0:00:18"]
[BlackClock "0:00:27"]

1. b3 {[%clk 0:02:56]}  Nf6 {[%clk 0:02:33]} 2. Bb2 {[%clk 0:02:55]}  g6 {[%clk 0:02:34]} 3. Bxf6 {[%clk 0:02:55]}  exf6 {[%clk 0:02:34]} 4. c4 {[%clk 0:02:56]}  Bg7 {[%clk 0:02:34]} 5. Nc3 {[%clk 0:02:57]}  f5 {[%clk 0:02:34]} 6. e3 {[%clk 0:02:57]}  O-O {[%clk 0:02:35]} 7. Nge2 {[%clk 0:02:58]}  d6 {[%clk 0:02:34]} 8. g3 {[%clk 0:02:58]}  Bd7 {[%clk 0:02:29]} 9. Rb1 {[%clk 0:02:53]}  Bc6 {[%clk 0:02:28]} 10. Nd5 {[%clk 0:02:53]}  Nd7 {[%clk 0:02:26]} 11. Bg2 {[%clk 0:02:53]}  a5 {[%clk 0:02:22]} 12. O-O {[%clk 0:02:53]}  Re8 {[%clk 0:02:19]} 13. a3 {[%clk 0:02:49]}  Nc5 {[%clk 0:02:17]} 14. d3 {[%clk 0:02:42]}  Bxd5 {[%clk 0:02:09]} 15. Bxd5 {[%clk 0:02:38]}  c6 {[%clk 0:02:09]} 16. Bg2 {[%clk 0:02:38]}  Qf6 {[%clk 0:02:09]} 17. b4 {[%clk 0:02:34]}  axb4 {[%clk 0:02:10]} 18. axb4 {[%clk 0:02:34]}  Ne6 {[%clk 0:02:10]} 19. b5 {[%clk 0:02:32]}  Rac8 {[%clk 0:02:10]} 20. bxc6 {[%clk 0:02:27]}  bxc6 {[%clk 0:02:11]} 21. d4 {[%clk 0:02:27]}  g5 {[%clk 0:02:09]} 22. Rb6 {[%clk 0:02:24]}  f4 {[%clk 0:02:03]} 23. Bxc6 {[%clk 0:02:16]}  Red8 {[%clk 0:01:46]} 24. Bd5 {[%clk 0:02:00]}  f3 {[%clk 0:01:36]} 25. Nc3 {[%clk 0:01:59]}  g4 {[%clk 0:01:36]} 26. h4 {[%clk 0:01:49]}  Qh6 {[%clk 0:01:25]} 27. Ne4 {[%clk 0:01:39]}  Bf6 {[%clk 0:01:10]} 28. Nxf6+ {[%clk 0:01:35]}  Qxf6 {[%clk 0:01:11]} 29. Qd3 {[%clk 0:01:30]}  h5 {[%clk 0:01:06]} 30. Rfb1 {[%clk 0:01:25]}  Rc7 {[%clk 0:01:06]} 31. Qe4 {[%clk 0:01:19]}  Kg7 {[%clk 0:01:04]} 32. Rb7 {[%clk 0:01:17]}  Rdd7 {[%clk 0:01:04]} 33. Rb8 {[%clk 0:01:12]}  Re7 {[%clk 0:00:56]} 34. Qd3 {[%clk 0:00:58]}  Nf8 {[%clk 0:00:48]} 35. Rxf8 {[%clk 0:00:45]}  Kxf8 {[%clk 0:00:49]} 36. Qh7 {[%clk 0:00:44]}  Re8 {[%clk 0:00:34]} 37. Qxh5 {[%clk 0:00:44]}  Qg6 {[%clk 0:00:31]} 38. Qh8+ {[%clk 0:00:37]}  Ke7 {[%clk 0:00:30]} 39. h5 {[%clk 0:00:18]}  Qxb1+ {[%clk 0:00:27]} 0-1

[Event "December 19 Early 2023"]
[Site "https://www.chess.com"]
[Date "2023.12.19"]
[Round "10"]
[White "Masague Artero, Guerau"]
[Black "Szyszylo, Rafal"]
[Result "1-0"]
[Board "97"]
[TimeControl "180+1"]
[WhiteFideId "32098952"]
[BlackFideId "1109626"]
[WhiteElo "2253"]
[BlackElo "1951"]
[WhiteTeam "ESP"]
[BlackTeam "POL"]
[WhiteClock "0:00:05"]
[BlackClock "0:00:00"]

1. Nf3 {[%clk 0:03:00]}  d6 {[%clk 0:02:58]} 2. e3 {[%clk 0:03:01]}  Nf6 {[%clk 0:02:55]} 3. d4 {[%clk 0:03:02]}  g6 {[%clk 0:02:55]} 4. b4 {[%clk 0:03:02]}  Bg7 {[%clk 0:02:52]} 5. Bb2 {[%clk 0:03:03]}  O-O {[%clk 0:02:53]} 6. Be2 {[%clk 0:03:03]}  Nc6 {[%clk 0:02:52]} 7. b5 {[%clk 0:03:02]}  Nb8 {[%clk 0:02:47]} 8. O-O {[%clk 0:03:02]}  Nfd7 {[%clk 0:02:48]} 9. c4 {[%clk 0:02:59]}  e5 {[%clk 0:02:47]} 10. Nc3 {[%clk 0:02:57]}  c6 {[%clk 0:02:46]} 11. a4 {[%clk 0:02:56]}  Re8 {[%clk 0:02:45]} 12. Qc2 {[%clk 0:02:52]}  a5 {[%clk 0:02:45]} 13. Rfd1 {[%clk 0:02:46]}  exd4 {[%clk 0:02:38]} 14. exd4 {[%clk 0:02:40]}  Nf6 {[%clk 0:02:36]} 15. h3 {[%clk 0:02:30]}  Bf5 {[%clk 0:02:34]} 16. Bd3 {[%clk 0:02:30]}  Bxd3 {[%clk 0:02:34]} 17. Qxd3 {[%clk 0:02:31]}  Nbd7 {[%clk 0:02:32]} 18. Ba3 {[%clk 0:02:18]}  Qc7 {[%clk 0:02:26]} 19. Rab1 {[%clk 0:02:19]}  Rad8 {[%clk 0:02:16]} 20. Rb3 {[%clk 0:01:59]}  c5 {[%clk 0:02:00]} 21. b6 {[%clk 0:01:35]}  Nxb6 {[%clk 0:01:47]} 22. Rdb1 {[%clk 0:01:34]}  Nfd7 {[%clk 0:01:45]} 23. d5 {[%clk 0:01:15]}  Rb8 {[%clk 0:01:40]} 24. Nb5 {[%clk 0:01:13]}  Qd8 {[%clk 0:01:38]} 25. Nxd6 {[%clk 0:01:12]}  Ne5 {[%clk 0:01:26]} 26. Nxe5 {[%clk 0:01:09]}  Qxd6 {[%clk 0:01:26]} 27. Nxf7 {[%clk 0:01:04]}  Kxf7 {[%clk 0:01:24]} 28. Rxb6 {[%clk 0:01:04]}  Re1+ {[%clk 0:01:16]} 29. Rxe1 {[%clk 0:01:02]}  Qxb6 {[%clk 0:01:17]} 30. Re6 {[%clk 0:00:53]}  Qc7 {[%clk 0:01:00]} 31. Qe3 {[%clk 0:00:34]}  Bd4 {[%clk 0:00:55]} 32. Qe4 {[%clk 0:00:30]}  Rf8 {[%clk 0:00:46]} 33. Bc1 {[%clk 0:00:23]}  Kg8 {[%clk 0:00:45]} 34. Be3 {[%clk 0:00:23]}  Bxe3 {[%clk 0:00:40]} 35. fxe3 {[%clk 0:00:19]}  Qg3 {[%clk 0:00:38]} 36. Qe5 {[%clk 0:00:09]}  Qe1+ {[%clk 0:00:12]} 37. Kh2 {[%clk 0:00:09]}  Qh4 {[%clk 0:00:10]} 38. Re7 {[%clk 0:00:08]}  Rf6 {[%clk 0:00:00]} 39. Rxb7 {[%clk 0:00:05]} 1-0

[Event "December 19 Early 2023"]
[Site "https://www.chess.com"]
[Date "2023.12.19"]
[Round "10"]
[White "Bach Ngoc Thuy Duong"]
[Black "Souleidis, Georgios"]
[Result "0-1"]
[Board "98"]
[TimeControl "180+1"]
[WhiteFideId "12408956"]
[BlackFideId "4206827"]
[WhiteElo "1970"]
[BlackElo "2401"]
[WhiteTeam "VIE"]
[BlackTeam "GRE"]
[WhiteClock "0:00:00"]
[BlackClock "0:00:02"]

1. d4 {[%clk 0:03:00]}  Nf6 {[%clk 0:02:59]} 2. c4 {[%clk 0:02:54]}  g6 {[%clk 0:02:59]} 3. Nc3 {[%clk 0:02:50]}  Bg7 {[%clk 0:03:00]} 4. e4 {[%clk 0:02:47]}  d6 {[%clk 0:03:00]} 5. Nf3 {[%clk 0:02:43]}  O-O {[%clk 0:03:00]} 6. Be2 {[%clk 0:02:39]}  e5 {[%clk 0:03:00]} 7. O-O {[%clk 0:02:37]}  Bg4 {[%clk 0:03:00]} 8. d5 {[%clk 0:02:26]}  a5 {[%clk 0:02:59]} 9. h3 {[%clk 0:02:20]}  Bxf3 {[%clk 0:02:55]} 10. Bxf3 {[%clk 0:02:20]}  Na6 {[%clk 0:02:56]} 11. Be3 {[%clk 0:02:14]}  Nd7 {[%clk 0:02:56]} 12. a3 {[%clk 0:02:08]}  f5 {[%clk 0:02:56]} 13. Rb1 {[%clk 0:01:52]}  Nac5 {[%clk 0:02:49]} 14. b4 {[%clk 0:01:45]}  axb4 {[%clk 0:02:50]} 15. axb4 {[%clk 0:01:46]}  Nxe4 {[%clk 0:02:49]} 16. Nxe4 {[%clk 0:01:46]}  fxe4 {[%clk 0:02:50]} 17. Bxe4 {[%clk 0:01:47]}  Qh4 {[%clk 0:02:42]} 18. Bd3 {[%clk 0:01:41]}  e4 {[%clk 0:02:32]} 19. Be2 {[%clk 0:01:38]}  Ne5 {[%clk 0:02:30]} 20. c5 {[%clk 0:01:34]}  Bh6 {[%clk 0:01:52]} 21. Bxh6 {[%clk 0:01:23]}  Qxh6 {[%clk 0:01:52]} 22. Bg4 {[%clk 0:01:21]}  e3 {[%clk 0:01:45]} 23. Be6+ {[%clk 0:01:16]}  Kh8 {[%clk 0:01:45]} 24. fxe3 {[%clk 0:01:16]}  Qxe3+ {[%clk 0:01:45]} 25. Kh1 {[%clk 0:01:15]}  Nd3 {[%clk 0:01:28]} 26. Qc2 {[%clk 0:01:06]}  Nf2+ {[%clk 0:01:07]} 27. Kh2 {[%clk 0:00:56]}  Qe5+ {[%clk 0:01:02]} 28. Kg1 {[%clk 0:00:52]}  Ne4 {[%clk 0:00:53]} 29. cxd6 {[%clk 0:00:31]}  cxd6 {[%clk 0:00:53]} 30. Qd3 {[%clk 0:00:29]}  Ng3 {[%clk 0:00:33]} 31. Rfe1 {[%clk 0:00:24]}  Qf4 {[%clk 0:00:28]} 32. Qc3+ {[%clk 0:00:15]}  Rf6 {[%clk 0:00:29]} 33. Qe3 {[%clk 0:00:07]}  Qh4 {[%clk 0:00:09]} 34. Rbc1 {[%clk 0:00:04]}  Raf8 {[%clk 0:00:08]} 35. Qd3 {[%clk 0:00:02]}  Qf4 {[%clk 0:00:04]} 36. Qe3 {[%clk 0:00:02]}  Qh4 {[%clk 0:00:04]} 37. Qd3 {[%clk 0:00:01]}  Nh5 {[%clk 0:00:03]} 38. Qe3 {[%clk 0:00:01]}  Nf4 {[%clk 0:00:02]} 39. Bg4 {[%clk 0:00:00]}  Qg5 {[%clk 0:00:02]} 0-1

[Event "December 19 Early 2023"]
[Site "https://www.chess.com"]
[Date "2023.12.19"]
[Round "10"]
[White "noblerone"]
[Black "Kostiukov, Alexandr"]
[Result "1-0"]
[Board "101"]
[TimeControl "180+1"]
[BlackFideId "14108100"]
[WhiteElo "2492"]
[BlackElo "2112"]
[BlackTeam "UKR"]
[WhiteClock "0:00:18"]
[BlackClock "0:00:21"]

1. e4 {[%clk 0:02:49]}  c5 {[%clk 0:02:59]} 2. Nf3 {[%clk 0:02:49]}  g6 {[%clk 0:02:59]} 3. Nc3 {[%clk 0:02:38]}  Bg7 {[%clk 0:02:57]} 4. g3 {[%clk 0:02:36]}  Nc6 {[%clk 0:02:56]} 5. Bg2 {[%clk 0:02:36]}  e5 {[%clk 0:02:56]} 6. O-O {[%clk 0:02:36]}  Nge7 {[%clk 0:02:57]} 7. d3 {[%clk 0:02:36]}  O-O {[%clk 0:02:57]} 8. Be3 {[%clk 0:02:34]}  d6 {[%clk 0:02:54]} 9. Qd2 {[%clk 0:02:25]}  Nd4 {[%clk 0:02:53]} 10. Bxd4 {[%clk 0:02:10]}  cxd4 {[%clk 0:02:54]} 11. Ne2 {[%clk 0:02:09]}  d5 {[%clk 0:02:37]} 12. c3 {[%clk 0:02:02]}  dxe4 {[%clk 0:02:31]} 13. dxe4 {[%clk 0:02:02]}  Nc6 {[%clk 0:02:03]} 14. Rfd1 {[%clk 0:01:59]}  Bg4 {[%clk 0:02:01]} 15. h3 {[%clk 0:01:56]}  Bxf3 {[%clk 0:02:01]} 16. Bxf3 {[%clk 0:01:57]}  Qb6 {[%clk 0:01:58]} 17. cxd4 {[%clk 0:01:46]}  exd4 {[%clk 0:01:49]} 18. Bg2 {[%clk 0:01:47]}  Ne5 {[%clk 0:01:29]} 19. Rab1 {[%clk 0:01:24]}  Rfd8 {[%clk 0:01:17]} 20. Nf4 {[%clk 0:01:19]}  Bh6 {[%clk 0:01:15]} 21. b3 {[%clk 0:00:49]}  Rac8 {[%clk 0:01:05]} 22. Rbc1 {[%clk 0:00:34]}  Rxc1 {[%clk 0:00:55]} 23. Qxc1 {[%clk 0:00:28]}  Bxf4 {[%clk 0:00:46]} 24. gxf4 {[%clk 0:00:26]}  Nc6 {[%clk 0:00:45]} 25. Qc4 {[%clk 0:00:22]}  Qb4 {[%clk 0:00:41]} 26. e5 {[%clk 0:00:20]}  Qxc4 {[%clk 0:00:40]} 27. bxc4 {[%clk 0:00:20]}  d3 {[%clk 0:00:38]} 28. Bd5 {[%clk 0:00:20]}  Nb4 {[%clk 0:00:37]} 29. a3 {[%clk 0:00:19]}  Na6 {[%clk 0:00:24]} 30. Rxd3 {[%clk 0:00:18]}  Nc5 {[%clk 0:00:24]} 31. Bxf7+ {[%clk 0:00:18]}  Kxf7 {[%clk 0:00:21]} 32. Rxd8 {[%clk 0:00:18]} 1-0

[Event "December 19 Early 2023"]
[Site "https://www.chess.com"]
[Date "2023.12.19"]
[Round "10"]
[White "Rogov, Matfey"]
[Black "Mesa Cruz, Juan Carlos"]
[Result "1-0"]
[Board "102"]
[TimeControl "180+1"]
[WhiteFideId "44191308"]
[BlackFideId "6423400"]
[WhiteElo "2057"]
[BlackElo "2142"]
[WhiteTeam "RUS"]
[BlackTeam "DOM"]
[WhiteClock "0:01:08"]
[BlackClock "0:00:00"]

1. Nc3 {[%clk 0:02:59]}  d5 {[%clk 0:02:59]} 2. d4 {[%clk 0:02:59]}  Nf6 {[%clk 0:02:59]} 3. Bg5 {[%clk 0:02:57]}  c5 {[%clk 0:02:58]} 4. e3 {[%clk 0:02:57]}  cxd4 {[%clk 0:02:57]} 5. exd4 {[%clk 0:02:57]}  Bg4 {[%clk 0:02:57]} 6. f3 {[%clk 0:02:55]}  Bd7 {[%clk 0:02:56]} 7. f4 {[%clk 0:02:48]}  e6 {[%clk 0:02:52]} 8. Nf3 {[%clk 0:02:48]}  Nc6 {[%clk 0:02:51]} 9. Bd3 {[%clk 0:02:45]}  Qb6 {[%clk 0:02:50]} 10. Ne2 {[%clk 0:02:33]}  Qxb2 {[%clk 0:02:22]} 11. O-O {[%clk 0:02:25]}  Qb6 {[%clk 0:02:10]} 12. Rb1 {[%clk 0:02:25]}  Qc7 {[%clk 0:02:10]} 13. Ne5 {[%clk 0:02:23]}  h6 {[%clk 0:02:00]} 14. Bh4 {[%clk 0:02:20]}  g5 {[%clk 0:01:44]} 15. fxg5 {[%clk 0:02:19]}  Nxe5 {[%clk 0:01:44]} 16. Bg3 {[%clk 0:01:51]}  Bd6 {[%clk 0:01:18]} 17. dxe5 {[%clk 0:01:49]}  Bc5+ {[%clk 0:01:18]} 18. Kh1 {[%clk 0:01:48]}  Nh5 {[%clk 0:01:01]} 19. g6 {[%clk 0:01:45]}  Nxg3+ {[%clk 0:01:01]} 20. Nxg3 {[%clk 0:01:46]}  f5 {[%clk 0:00:57]} 21. exf6 {[%clk 0:01:44]}  O-O-O {[%clk 0:00:52]} 22. g7 {[%clk 0:01:43]}  Rhg8 {[%clk 0:00:51]} 23. Bh7 {[%clk 0:01:43]}  Bc6 {[%clk 0:00:46]} 24. Bxg8 {[%clk 0:01:42]}  Rxg8 {[%clk 0:00:47]} 25. f7 {[%clk 0:01:40]}  Rxg7 {[%clk 0:00:47]} 26. f8=Q+ {[%clk 0:01:40]}  Bxf8 {[%clk 0:00:46]} 27. Rxf8+ {[%clk 0:01:41]}  Kd7 {[%clk 0:00:46]} 28. Qd4 {[%clk 0:01:38]}  e5 {[%clk 0:00:44]} 29. Qh4 {[%clk 0:01:33]}  Qa5 {[%clk 0:00:22]} 30. Rbf1 {[%clk 0:01:29]}  Re7 {[%clk 0:00:14]} 31. h3 {[%clk 0:01:26]}  Qa4 {[%clk 0:00:12]} 32. Qxh6 {[%clk 0:01:11]}  Qxc2 {[%clk 0:00:09]} 33. Nf5 {[%clk 0:01:09]}  Re6 {[%clk 0:00:00]} 34. Qg7+ {[%clk 0:01:08]} 1-0

[Event "December 19 Early 2023"]
[Site "https://www.chess.com"]
[Date "2023.12.19"]
[Round "10"]
[White "Omariev, Maksim"]
[Black "Buscar, Michael"]
[Result "1-0"]
[Board "106"]
[TimeControl "180+1"]
[WhiteFideId "4193423"]
[BlackFideId "2603616"]
[WhiteElo "2447"]
[BlackElo "2010"]
[WhiteTeam "RUS"]
[BlackTeam "CAN"]
[WhiteClock "0:00:02"]
[BlackClock "0:00:06"]

1. g4 {[%clk 0:02:54]}  h5 {[%clk 0:02:38]} 2. g5 {[%clk 0:02:51]}  e5 {[%clk 0:02:38]} 3. d4 {[%clk 0:02:50]}  e4 {[%clk 0:02:36]} 4. c4 {[%clk 0:02:49]}  Bb4+ {[%clk 0:02:32]} 5. Nc3 {[%clk 0:02:48]}  d5 {[%clk 0:02:31]} 6. Qb3 {[%clk 0:02:46]}  Bxc3+ {[%clk 0:02:29]} 7. Qxc3 {[%clk 0:02:47]}  c6 {[%clk 0:02:26]} 8. f3 {[%clk 0:02:41]}  exf3 {[%clk 0:02:18]} 9. Nxf3 {[%clk 0:02:42]}  Ne7 {[%clk 0:02:10]} 10. Bg2 {[%clk 0:02:12]}  Be6 {[%clk 0:02:07]} 11. e4 {[%clk 0:01:41]}  dxe4 {[%clk 0:01:54]} 12. Ne5 {[%clk 0:01:41]}  Nf5 {[%clk 0:01:53]} 13. Be3 {[%clk 0:01:42]}  Nxe3 {[%clk 0:01:49]} 14. Qxe3 {[%clk 0:01:43]}  Nd7 {[%clk 0:01:48]} 15. Nxd7 {[%clk 0:01:35]}  Qxd7 {[%clk 0:01:38]} 16. O-O-O {[%clk 0:01:33]}  Bxc4 {[%clk 0:01:32]} 17. Qxe4+ {[%clk 0:01:15]}  Be6 {[%clk 0:01:31]} 18. Qe5 {[%clk 0:00:57]}  O-O {[%clk 0:01:20]} 19. Kb1 {[%clk 0:00:54]}  g6 {[%clk 0:01:15]} 20. Ka1 {[%clk 0:00:51]}  Rad8 {[%clk 0:01:11]} 21. Rhf1 {[%clk 0:00:48]}  Qd6 {[%clk 0:01:06]} 22. Qf6 {[%clk 0:00:31]}  Qxh2 {[%clk 0:01:03]} 23. Be4 {[%clk 0:00:32]}  Rd6 {[%clk 0:00:42]} 24. Rh1 {[%clk 0:00:05]}  Qg3 {[%clk 0:00:15]} 25. Rdg1 {[%clk 0:00:04]}  Qe3 {[%clk 0:00:06]} 26. Bxg6 {[%clk 0:00:01]}  Qxd4 {[%clk 0:00:07]} 27. Bh7+ {[%clk 0:00:01]}  Kxh7 {[%clk 0:00:06]} 28. Rxh5+ {[%clk 0:00:02]}  Kg8 {[%clk 0:00:06]} 29. Rh8# {[%clk 0:00:02]} 1-0

[Event "December 19 Early 2023"]
[Site "https://www.chess.com"]
[Date "2023.12.19"]
[Round "10"]
[White "Novak, Ratko"]
[Black "Marinakis, Hristos"]
[Result "0-1"]
[Board "109"]
[TimeControl "180+1"]
[WhiteFideId "14511827"]
[BlackFideId "4294661"]
[WhiteElo "2036"]
[BlackElo "2316"]
[WhiteTeam "CRO"]
[BlackTeam "GRE"]
[WhiteClock "0:00:00"]
[BlackClock "0:00:06"]

1. d4 {[%clk 0:03:00]}  Nf6 {[%clk 0:02:59]} 2. c4 {[%clk 0:03:00]}  e6 {[%clk 0:02:59]} 3. a3 {[%clk 0:03:00]}  b6 {[%clk 0:02:55]} 4. d5 {[%clk 0:02:59]}  Bb7 {[%clk 0:02:52]} 5. Nc3 {[%clk 0:02:59]}  Be7 {[%clk 0:02:48]} 6. e4 {[%clk 0:02:59]}  exd5 {[%clk 0:02:35]} 7. cxd5 {[%clk 0:02:59]}  d6 {[%clk 0:02:35]} 8. f4 {[%clk 0:02:51]}  O-O {[%clk 0:02:34]} 9. Nf3 {[%clk 0:02:44]}  Re8 {[%clk 0:02:25]} 10. Be2 {[%clk 0:02:43]}  Bf8 {[%clk 0:02:19]} 11. Qc2 {[%clk 0:02:42]}  Nbd7 {[%clk 0:02:15]} 12. b4 {[%clk 0:02:36]}  Qe7 {[%clk 0:02:00]} 13. O-O {[%clk 0:02:12]}  Nxe4 {[%clk 0:01:12]} 14. Bc4 {[%clk 0:02:11]}  Nxc3 {[%clk 0:01:00]} 15. Qxc3 {[%clk 0:02:11]}  Nf6 {[%clk 0:01:00]} 16. Qb3 {[%clk 0:02:04]}  Qd7 {[%clk 0:00:40]} 17. Nd4 {[%clk 0:01:52]}  a6 {[%clk 0:00:34]} 18. Qf3 {[%clk 0:01:29]}  Re4 {[%clk 0:00:21]} 19. Bb2 {[%clk 0:01:25]}  Rae8 {[%clk 0:00:21]} 20. Rad1 {[%clk 0:00:54]}  Re3 {[%clk 0:00:19]} 21. Qf2 {[%clk 0:00:48]}  b5 {[%clk 0:00:18]} 22. Ba2 {[%clk 0:00:38]}  Nxd5 {[%clk 0:00:17]} 23. Bc1 {[%clk 0:00:27]}  R3e7 {[%clk 0:00:09]} 24. f5 {[%clk 0:00:23]}  Nc3 {[%clk 0:00:09]} 25. Rd3 {[%clk 0:00:14]}  Ne2+ {[%clk 0:00:06]} 26. Kh1 {[%clk 0:00:12]}  Nxd4 {[%clk 0:00:06]} 27. Qxd4 {[%clk 0:00:13]}  Re2 {[%clk 0:00:06]} 28. Bb1 {[%clk 0:00:12]}  Rxg2 {[%clk 0:00:06]} 29. Rdf3 {[%clk 0:00:10]}  Bxf3 {[%clk 0:00:05]} 30. Rxf3 {[%clk 0:00:11]}  Rge2 {[%clk 0:00:04]} 31. Rf1 {[%clk 0:00:10]}  Re1 {[%clk 0:00:04]} 32. Qf4 {[%clk 0:00:10]}  Rxf1+ {[%clk 0:00:04]} 33. Qxf1 {[%clk 0:00:11]}  Qc6+ {[%clk 0:00:05]} 34. Kg1 {[%clk 0:00:11]}  Qc3 {[%clk 0:00:05]} 35. f6 {[%clk 0:00:09]}  Re1 {[%clk 0:00:04]} 36. Bf4 {[%clk 0:00:06]}  Rxf1+ {[%clk 0:00:04]} 37. Kxf1 {[%clk 0:00:07]}  Qf3+ {[%clk 0:00:05]} 38. Ke1 {[%clk 0:00:00]}  Qxf4 {[%clk 0:00:06]} 0-1